Cogmind - Beta 14 @@@ ROGUE MODE // 2025.01.01 @ 23:59:36 Player: morimori Result: Destroyed by DAS Turret with DAS Cannon Performance ------------- Evolutions (0) 0 Regions Visited (3) 600 Robots Destroyed (27) 135 Value Destroyed (592) 592 Prototype IDs (4) 80 Alien Tech Used (0) 0 Bonus (-12) -12 TOTAL SCORE: 1395 Bonus ------- Aligned with FarCom 300 Friendly Fire -312 Cogmind --------- Core Integrity 0/250 Matter 23/300 Energy 78/100 System Corruption 0% Temperature Cool (4) Movement Walking (45) Location -10/Exiles Parts ------- > --- POWER (1) -------- (None) > --- PROPULSION (2) --- Potential Leg Potential Leg > --- UTILITY (2) ------ High-capacity Storage Unit > --- WEAPON (2) ------- Light Cannon > --- INVENTORY (20) --- Hover Unit Hover Unit Heat Sink Experimental Heat Sink Huge Storage Unit Gravity Neutralizer Sensor Array Improved Terrain Scanner Seismic Detector Hacking Suite Medium Laser Small Laser Hammer Peak State ------------ > --- POWER ------------ Light Ion Engine > --- PROPULSION ------- Potential Leg Potential Leg > --- UTILITY ---------- Huge Storage Unit Seismic Detector > --- WEAPON ----------- Medium Laser Small Laser > --- INVENTORY -------- Light Ion Engine Light Nuclear Core Wheel Wheel Hover Unit Hover Unit Heat Sink Sensor Array Improved Terrain Scanner Core Shielding Core Shielding Core Shielding Light Armor Plating Hacking Suite EM Pulse Gun EM Pulse Gun Small Laser Assault Rifle Light Assault Rifle Light Cannon Light Cannon Light Cannon Light Cannon Grenade Launcher Hammer [Rating: 28] Favorites ----------- Power Light Ion Engine Engine Light Ion Engine Power Core Light Nuclear Core Propulsion Compact Wheel Leg Potential Leg Wheel Compact Wheel Utility Huge Storage Unit Device Seismic Detector Storage Huge Storage Unit Protection Core Shielding Weapon Medium Laser Energy Gun Medium Laser Ballistic Gun Light Assault Rifle Ballistic Cannon Light Cannon Launcher Grenade Launcher Build | -11 -10 -10 -10 ------- Run | Yrd Mat Min Exi Slots Evolved . | . . . . Power . | . . . . Propulsion . | . . . . Utility . | . . . . Weapon . | . . . . Parts Attached 49 | 9 14 . 26 Power 5 | 1 2 . 2 Engine 4 | 1 2 . 1 Core 1 | . . . 1 Reactor . | . . . . Propulsion 13 | 2 2 . 9 Treads . | . . . . Leg 5 | . . . 5 Wheel 8 | 2 2 . 4 Hover . | . . . . Flight . | . . . . Utility 12 | 3 3 . 6 Device 7 | 2 2 . 3 Storage 3 | 1 1 . 1 Processor . | . . . . Hackware . | . . . . Protection 2 | . . . 2 Artifact . | . . . . Weapon 19 | 3 7 . 9 Energy Gun 7 | 2 5 . . Energy Cannon . | . . . . Ballistic Gun 3 | 1 . . 2 Ballistic Cannon 5 | . . . 5 Launcher 4 | . 2 . 2 Special Weapon . | . . . . Impact Weapon . | . . . . Slashing Weapon . | . . . . Piercing Weapon . | . . . . Special Melee Weapon . | . . . . Unidentified Prototypes 4 | . . . 4 Parts Lost 13 | . . . 13 Power 3 | . . . 3 Propulsion 3 | . . . 3 Utility 1 | . . . 1 Weapon 6 | . . . 6 Highest Loss Streak 5 | . . . 5 To Critical Strikes . | . . . . Average Slot Usage (%) 94 | . 99 100 85 Engine 13 | . 14 14 12 Wheel 26 | . 28 28 23 Device 11 | . 13 14 5 Storage 14 | . 14 14 14 Energy Gun 17 | . 18 28 10 Ballistic Gun 2 | . 5 . 1 Ballistic Cannon 3 | . . . 11 Launcher 1 | . 3 . . Peak Build Rating 28 | 7 10 10 28 Average Rating 9 | 5 8 10 11 On Entrance 6 | . 7 10 10 Naked Turns . | . . . . Heaviest Build 92 | 12 89 87 92 Greatest Support 60 | 32 32 26 60 Greatest Overweight (x) 9 | . 3 3 9 Average Overweight (x) 2 | . 1 3 3 Largest Inventory Capacity 25 | 8 25 25 25 Average Capacity 21 | 7 20 25 24 Most Carried 25 | 7 25 25 25 Average Carried 16 | 3 11 25 21 Final Capacity 25 | 8 25 25 20 Final Carried 25 | 6 25 25 13 Class Distribution -------------------- 100% | Mutant Dominant Class ---------------- Mutant | -10/Materials Mutant | -10/Mines Mutant | -10/Exiles Resources | -11 -10 -10 -10 ----------- Run | Yrd Mat Min Exi Matter Collected 993 | 299 441 . 253 Remotely 126 | 126 . . . Salvage Created 631 | 114 476 . 41 Parts 46 | 9 37 . . Haulers Intercepted 1 | . 1 . . Recyclers Shooed 1 | . 1 . . Parts Field Recycled . | . . . . Retrieved Matter . | . . . . Parts Self-Destructed . | . . . . Prevented . | . . . . Kills | -11 -10 -10 -10 ------- Run | Yrd Mat Min Exi Combat Hostiles Destroyed 20 | . 15 . 5 Guns 1 | . 1 . . Cannons 2 | . . . 2 AOE 17 | . 14 . 3 Classes Destroyed 9 | 2 6 . 1 Builder 1 | . 1 . . Tunneler 2 | 2 . . . Hauler 1 | . 1 . . Recycler 2 | 1 1 . . Operator 1 | . 1 . . Watcher 3 | . 3 . . Swarmer 3 | . 3 . . Grunt 13 | . 12 . 1 Assembled 4 | . . . 4 Best Kill Streak 8 | 2 8 . 3 Combat Bots Only 6 | . 6 . 3 Max Kills in Single Turn 3 | 1 3 . 2 Gunslinging . | . . . . Exploded 2 | . 2 . 2 Melee . | . . . . Uniques/NPCs Destroyed 1 | . . . 1 8R-AWN (-10/Exiles) Combat | -11 -10 -10 -10 -------- Run | Yrd Mat Min Exi Hostile Shots Fired 97 | . 28 . 69 Missed 27 | . 10 . 17 Damage Taken 1845 | . 223 . 1622 Core 291 | . 48 . 243 Absorbed by Shields . | . . . . Redirected to Shielding 10 | . . . 10 Regen/Repaired (Parts) 100 | . 100 . . Core Remaining (%) 100 | 100 . . . Volleys Fired 113 | 9 57 1 46 Largest 2 | 2 2 1 2 Hottest 90 | 70 90 40 70 Shots Fired 167 | 18 65 1 83 Gun 64 | 18 36 1 9 Cannon 71 | . . . 71 Launcher 32 | . 29 . 3 Special . | . . . . Kinetic 100 | 9 11 . 80 Thermal 35 | 9 25 1 . Explosive 32 | . 29 . 3 Electromagnetic . | . . . . Robot Hit Streak 7 | 4 7 . 7 Robot Miss Streak 3 | 1 3 1 3 Penetration Max . | . . . . Secondary Targets . | . . . . Shots Hit Robots 83 | 12 25 . 46 Core Hits 73 | 6 46 . 21 Critical Kills . | . . . . Critical Parts Destroyed . | . . . . Critical Strikes 2 | . . . 2 Blast 2 | . . . 2 Melee Attacks . | . . . . Impact . | . . . . Slashing . | . . . . Piercing . | . . . . Sneak Attacks . | . . . . Combat Hostiles . | . . . . Follow-up Attacks . | . . . . Damage Inflicted 2667 | 122 1516 . 1029 Guns 373 | 122 221 . 30 Cannons 673 | . . . 673 Explosions 1621 | . 1295 . 326 Melee . | . . . . Ramming . | . . . . Kinetic 799 | 59 37 . 703 Thermal 247 | 63 184 . . Explosive 1621 | . 1295 . 326 Electromagnetic . | . . . . Impact . | . . . . Slashing . | . . . . Piercing . | . . . . Highest Corruption . | . . . . Average Corruption . | . . . . Corruption Purged . | . . . . Corruption Blocked . | . . . . Overload Shots . | . . . . Overflow Damage 107 | . 5 . 102 Projectiles . | . . . . Explosions 107 | . 5 . 102 Melee . | . . . . Knockbacks 6 | . . . 6 Impact . | . . . . Kinetic 6 | . . . 6 Secondary . | . . . . Self-Inflicted Damage 143 | . 29 . 114 Shots 4 | . 3 . 1 Rammed . | . . . . Targets Rammed . | . . . . Kicked . | . . . . Crushed . | . . . . Highest Temperature 138 | 90 90 . 138 Average Temperature 42 | 40 23 . 51 Received Heat Transfer 93 | . 93 . . Siege Activations . | . . . . Robots Corrupted . | . . . . Combat Hostiles . | . . . . Parts Fried . | . . . . Impact Corruptions . | . . . . Robots Melted . | . . . . Combat Hostiles . | . . . . Parts Melted 1 | . 1 . . Heat Transferred 645 | 185 460 . . Parts Sabotaged . | . . . . Parts Stolen . | . . . . Parts Stripped . | . . . . Power Chain Reactions . | . . . . Alert | -11 -10 -10 -10 ------- Run | Yrd Mat Min Exi Peak Influence 409 | 15 409 66 . Initial 66 | . 9 66 . Average 173 | 7 239 48 . Maximum Alert Level 2 | . 2 . . Low Security (%) 57 | 100 36 100 . Level 1 38 | . 57 . . Level 2 4 | . 5 . . Level 3 . | . . . . Level 4 . | . . . . Level 5 . | . . . . High Security . | . . . . Max Security . | . . . . Squads Dispatched 2 | . 2 . . Investigation 1 | . 1 . . Extermination . | . . . . Reinforcement 1 | . 1 . . Assault . | . . . . Garrison . | . . . . Intercept . | . . . . Searches Triggered . | . . . . Construction Impeded . | . . . . Haulers Reinforced . | . . . . Active Scanning Responses . | . . . . Cargo Convoy Interrupts . | . . . . Stealth | -11 -10 -10 -10 --------- Run | Yrd Mat Min Exi Distress Signals 3 | . 3 . . Communications Jammed . | . . . . Distress Signals . | . . . . Times Spotted 30 | . 22 . 8 Peak Tracking Total 9 | . 7 . 9 Tactical Retreats 2 | . 1 . 1 Traps | -11 -10 -10 -10 ------- Run | Yrd Mat Min Exi Traps Triggered 2 | . 2 . . Indirectly . | . . . . Trap Hack Attempts . | . . . . Triggered . | . . . . Disarmed . | . . . . Reprogrammed . | . . . . Reused . | . . . . Traps Extracted . | . . . . Installed . | . . . . Triggered . | . . . . Machines | -11 -10 -10 -10 ---------- Run | Yrd Mat Min Exi Machines Disabled 9 | . 4 . 5 Max in Single Turn 1 | . 1 . 1 Machines Repaired . | . . . . Machines Dismantled . | . . . . Machines Sabotaged . | . . . . Overloaded Fab Kills . | . . . . Hacking | -11 -10 -10 -10 --------- Run | Yrd Mat Min Exi Machines Accessed 8 | . 7 . 1 Terminals 5 | . 5 . . Fabricators . | . . . . Repair Stations 1 | . 1 . . Recycling Units 1 | . 1 . . Scanalyzers . | . . . . Garrison Access . | . . . . Total Hacks 31 | . 22 . 9 Successful 22 | . 13 . 9 Failed 9 | . 9 . . Catastrophic . | . . . . Database Lockouts . | . . . . Manual 13 | . 12 . 1 Terminals 14 | . 14 . . Fabricators . | . . . . Repair Stations 7 | . 7 . . Recycling Units 1 | . 1 . . Scanalyzers . | . . . . Garrison Access . | . . . . Terminal Hacks 12 | . 3 . 9 Record 9 | . . . 9 Robot Analysis 2 | . 2 . . Zone Layout 1 | . 1 . . Fabricator Hacks . | . . . . Repair Station Hacks 7 | . 7 . . Scan Component 4 | . 4 . . Repair 3 | . 3 . . Recycling Unit Hacks 1 | . 1 . . Retrieve Components 1 | . 1 . . Scanalyzer . | . . . . Garrison Access Hacks . | . . . . Unauthorized Hacks 2 | . 2 . . Terminals 2 | . 2 . . Botnet 1 | . 1 . . Operators 1 | . 1 . . Fabricators . | . . . . Repair Stations . | . . . . Recycling Units . | . . . . Scanalyzers . | . . . . Garrison Access . | . . . . Data Cores Recovered . | . . . . Used . | . . . . Hacking Detections 6 | . 6 . . Full Trace Events . | . . . . Feedback Events . | . . . . Feedback Blocked . | . . . . Robot Schematics Acquired . | . . . . Robots Built . | . . . . Authchips . | . . . . Time . | . . . . Total Robot Build Rating . | . . . . Part Schematics Acquired . | . . . . Parts Built . | . . . . Authchips . | . . . . Time . | . . . . Total Part Build Rating . | . . . . Parts Repaired 3 | . 3 . . Time 78 | . 78 . . Parts Recycled . | . . . . Recycled Matter . | . . . . Retrieved Matter . | . . . . Retrieved Components 10 | . 10 . . Parts Scanalyzed . | . . . . Part Schematics Acquired . | . . . . Parts Damaged . | . . . . Bothacking | -11 -10 -10 -10 ------------ Run | Yrd Mat Min Exi Used RIF Installer . | . . . . Robots Hacked . | . . . . Non-combat . | . . . . Combat . | . . . . Robot Hacks Applied . | . . . . Relay Couplers Released . | . . . . Fabnet Peak Effective % . | . . . . Robots Rewired . | . . . . Allies Hacked . | . . . . Hacks Repelled . | . . . . Allies | -11 -10 -10 -10 -------- Run | Yrd Mat Min Exi Total Allies 3 | . . 3 . Largest Group 3 | . . 3 3 Highest-Rated Group 40 | . . 40 40 Highest-Rated Ally 16 | . . 16 16 Total Orders . | . . . . Ally Attacks 27 | . . . 27 Total Damage 499 | . . . 499 Kills 3 | . . . 3 Allies Corrupted . | . . . . Allies Melted . | . . . . Turrets Deployed 3 | . . . 3 Intel | -11 -10 -10 -10 ------- Run | Yrd Mat Min Exi Robot Analysis Total 2 | . 2 . . Derelict Logs Recovered 1 | . . 1 . Drone Launches . | . . . . Drone Recoveries . | . . . . Exploration | -11 -10 -10 -10 ------------- Run | Yrd Mat Min Exi Turns Passed 2939 | 116 1335 547 941 Spaces Moved 1875 | 60 890 396 529 Core 4 | 4 . . . Treads . | . . . . Legs 30 | . . . 30 Wheels 1841 | 56 890 396 499 Hover . | . . . . Flight . | . . . . Fastest Speed 45 | 50 100 135 45 Average Speed 129 | 96 119 135 145 Slowest Speed 250 | 100 135 135 250 Overloaded Moves 6 | . . . 6 Propulsion Burnouts . | . . . . Robots Hopped 3 | . . . 3 Cave-ins Triggered . | . . . . Time Travels 1 | . . . 1 Exploration Rate (%) 58 | 4 99 69 60 Regions Visited 3 Branch Regions 2 Pre-discovered Areas . | . . . . Known Exits Taken . | . . . . Unknown Exits Taken 3 | 1 1 1 . Scrap Searched 2 | . . 2 . Spaces Dug . | . . . . Terrain Destroyed 142 | . 84 . 58 Melee . | . . . . Projectile 1 | . . . 1 AOE 141 | . 84 . 57 Terrain Rammed . | . . . . Walls Destroyed . | . . . . Machines Disabled . | . . . . Actions | -11 -10 -10 -10 --------- Run | Yrd Mat Min Exi Total 2223 | 98 1098 407 620 Wait 133 | 11 106 11 5 Move 1866 | 59 889 395 523 Hop 3 | . . . 3 Pick Up 36 | 7 24 . 5 Fast Attach 17 | 8 5 . 4 Attach 13 | . . . 13 Detach 3 | 1 . . 2 Swap 19 | 1 9 . 9 Drop 20 | 2 8 . 10 Fire 113 | 9 57 1 46 Melee . | . . . . Ram . | . . . . Kick . | . . . . Crush . | . . . . Escape Stasis . | . . . . Rewire . | . . . . Trap . | . . . . Miscellaneous . | . . . . Route ------- -11/Scrapyard -10/Materials (discovered 5 exits: [*Mat x3] / [*Min x2]) -10/Mines (discovered 2 exits: [*Mat] / *Exi) -10/Exiles (discovered 1 exit: [*Min]) History --------- Turn | Location | Event 29 | -11/Scrapyard | Discovered new exit (range 15) 117 | -11/Scrapyard | Entered Materials 117 | -10/Materials | Discovered new exit (range 15) 301 | -10/Materials | Build established: Mutant 311 | -10/Materials | Discovered new exit (range 15) 407 | -10/Materials | Discovered new exit (range 16) 899 | -10/Materials | Discovered new exit (range 5) 1179 | -10/Materials | Repaired Sml. Laser 1207 | -10/Materials | Repaired Grenade Launcher 1234 | -10/Materials | Repaired Seismic Detector 1357 | -10/Materials | Discovered new exit (range 15) 1452 | -10/Materials | Entered Mines 1570 | -10/Mines | Deemed a non-threat by the Exiles lab entrance 1697 | -10/Mines | Learned 2 Materials zone layouts 1702 | -10/Mines | Discovered new exit (range 5) 1768 | -10/Mines | Assisted by bots powering up and referring to "LRC-V3" 1908 | -10/Mines | Assembled infested the area 1983 | -10/Mines | Discovered new exit (range 5) 1999 | -10/Mines | Entered Exiles 1999 | -10/Exiles | Accompanied by 3 allies 2017 | -10/Exiles | Discovered new exit (range 15) 2033 | -10/Exiles | Met 8R-AWN 2055 | -10/Exiles | Met EX-HEX 2095 | -10/Exiles | Met EX-BIN 2120 | -10/Exiles | Aligned with FarCom system 2121 | -10/Exiles | Given EX-Vault access code 2153 | -10/Exiles | Opened EX-Vault 2160 | -10/Exiles | DAS Turret deployed 2187 | -10/Exiles | Found Prototype Leg 2187 | -10/Exiles | Identified Potential Leg 2191 | -10/Exiles | Found Potential Leg 2211 | -10/Exiles | Found Prototype Device 2211 | -10/Exiles | Identified Chronowheel 2211 | -10/Exiles | Activated Chronowheel 2211 | -10/Exiles | Spacetime reconverged on an earlier point 2215 | -10/Exiles | Found Deploy-a-Sentry 2218 | -10/Exiles | Found Deploy-a-Sentry 2248 | -10/Exiles | Warned to stay clear of 0b10 Research branches 2287 | -10/Exiles | Met EX-DEC 2372 | -10/Exiles | DAS Turret deployed 2374 | -10/Exiles | DAS Turret deployed 2383 | -10/Exiles | Attacked by the Exiles 2439 | -10/Exiles | Lost 5 allies 2490 | -10/Exiles | Destroyed 8R-AWN 2506 | -10/Exiles | Lost 5 parts (2p2n1w) 2800 | -10/Exiles | Core integrity fell below 50% 2931 | -10/Exiles | Core integrity fell below 20% 2940 | -10/Exiles | Destroyed by DAS Turret with DAS Cannon Last Messages --------------- 02712_ Destroyed Lgt. Cannon. 02729_ Connecting with DEC's Terminal... 02757_ Acquired 4 matter. 02798_ Lgt. Cannon destroyed. 02799_ Knocked back. 02800_ Acquired 7 matter. 02889_ Acquired Hcp. Storage Unit. 02891_ Dropped Wheel. 02910_ Lgt. Armor Plating destroyed. 02912_ Lgt. Ion Engine destroyed. 02914_ Assault Rifle destroyed. 02914_ Knocked back. 02924_ Machine disabled. 02928_ Potential Leg blasted off. 02930_ Knocked back. 02934_ Acquired Potential Leg. 02934_ Grenade Launcher destroyed. 02936_ Knocked back. 02940_ DAS Turret knocked back. 02940_ Lgt. Assault Rifle destroyed. Map ----- +----------------------------------------------------+ | ???????????????????????????????????#" "X" "" | | ???????????????????????????????????#" """ | | ????????????????????? ????????????#" """""""" | | ?????????????????????" ???????????##" ######### | | ?????????????????????# ?????????##"" #???????? | | ???????????????????### ##??######"" #???????? | | ???????????????#####X# #"###""""""" ##??????? | | ??????????????? """""" " "" ##???### | | ?????????????? "" """ " #####"" | | ?????????????? " " " | | ?????????????? % | | ????????????? | | ????????????? | | ????????????# | | ?????????????#" | | ?????????????#""" """""" | | ?????????????#" ######""" | | ?????????????"" ""##????#####""" | | ?????????????""" """##?????????##""" | | ?????????????"" """##???????????#"""" | | ????????????""" ""#???????????##"" | | ????????????"" ########??####"""" | | ????????????"" ##aaa####""" | | ????????????""t """" | | ????????????#"" | | ????????????#"" @ %% | | ?????????????# % | | ?????????????#" %% % % " "" | | ?????????????#"""" %% % ""## ##""" " " | | ??????????????"" % ""#### ######""" " | | ?????????????#" """"##??# #????###""" | | ?????????????#""" ""#??## ####???#### | | ?????????????## ""##??#! "!#??????? | | ??????????????#"" """##???#" =#??????? | | ??????????????##""" ##????#" "#??????? | | ???????????????##"""" ##?????#!!""!"#??????? | | ?????????????????## #??????########??????? | | ??????????????????##### ##????????????????????? | | ??????????????????????## #?????????????????????? | | ???????????????????????# #?????????????????????? | | ???????????????????????# #?????????????????????? | | ???????????????????????# ??????????????????????? | | ???????????????????????# ??????????????????????? | | ???????????????????????# ??????????????????????? | | ????????????????????????? ???????????????????????? | | ?????????????????????????????????????????????????? | | ?????????????????????????????????????????????????? | | ?????????????????????????????????????????????????? | | ?????????????????????????????????????????????????? | | ?????????????????????????????????????????????????? | +----------------------------------------------------+ Best States ------------- Heat Dissipation 51 Energy Generation 14 Energy Capacity 160 Matter Stores 300 Matter Capacity 300 Sight Range 16 Terrain Scan Density 10 Armor Coverage 150 Core Shielding 20 Evasion (%) 51 Item Schematics ----------------- None Robot Schematics ------------------ None Fabricated ------------ Nothing Alien Tech Used ----------------- None Achievements -------------- None Challenges ------------ None Game ------ Seed MyomerWeightDerivative Manual? 0 Play Time 00:25:29 Cumulative 297.7 hours Start 2025.01.01 @ 23:39:29 End 2025.01.01 @ 23:59:36 Sessions 1 Manual Loads 0 Difficulty Rogue Special Mode None Game No. 156 Rogue 156 Adventurer 0 Explorer 0 Win Type - Total 4 Types 4/0/0/0/0/0/0/0/0 Lore% 47 Gallery% 67 Achievement% 60 Wizard Run 0 Options --------- Layout 0 ASCII 0 Keyboard 1 Movement Vi Keybinds 0 Fullscreen 2 Font 18/SmallcapsGlow Map View 76x50 Zoom Use 0% Tactical HUD 1 Map Filters NONE Filters NONE Steam 1 RUN: 8cd31f5a-fcf2-4174-9eec-e2f2314029f2